bitfinex/quotes_SOLUSD_20230110
["timestamp","ask_amount","ask_price","bid_price","bid_amount"]
[1673349221206,17.0,16.194,16.182,129.98887109]
[1673349221407,17.0,16.194,16.182,18.23537109]
[1673349221617,17.0,16.194,16.181,66.37]
[1673349222565,17.0,16.194,16.181,20.0]
[1673349224366,17.0,16.194,16.18,46.37]
[1673349224568,130.4,16.19,16.179,112.2155]
[1673349224790,83.34,16.189,16.179,112.2155]
[1673349226679,122.03152974,16.189,16.17,20.0]
[1673349226888,130.4,16.18,16.17,20.0]
[1673349227085,83.37,16.179,16.166,114.4928]
[1673349230041,83.37,16.179,16.167,20.0]
[1673349234558,83.37,16.179,16.166,114.4928]
[1673349234762,20.0,16.178,16.166,114.4928]
[1673349234993,63.38,16.177,16.166,114.4928]
[1673349235406,63.38,16.177,16.157,46.43]
[1673349235608,26.09,16.17,16.158,135.4989]
[1673349235815,17.0,16.169,16.159,20.0]
[1673349236037,17.0,16.169,16.16,20.0]
[1673349237503,17.0,16.169,16.158,115.4989]
[1673349237701,46.4,16.168,16.158,115.4989]
[1673349237914,17.0,16.167,16.158,115.4989]
[1673349238436,17.0,16.168,16.158,115.4989]
[1673349238768,46.41,16.167,16.158,115.4989]
[1673349240555,17.0,16.168,16.158,115.4989]
[1673349241695,46.41,16.167,16.158,115.4989]
[1673349241908,17.0,16.166,16.158,115.4989]
[1673349246847,46.4,16.169,16.158,115.4989]
[1673349247060,130.46,16.17,16.158,115.4989]
[1673349247369,20.0,16.169,16.158,115.4989]
[1673349248211,63.4,16.168,16.158,115.4989]
[1673349248418,17.0,16.168,16.158,115.4989]
[1673349249592,20.0,16.169,16.159,20.0]
[1673349254222,20.0,16.169,16.158,115.4989]
[1673349254533,17.0,16.168,16.158,115.4989]
[1673349264180,20.0,16.169,16.158,115.4989]
[1673349264396,20.0,16.169,16.159,20.0]
[1673349265334,17.0,16.168,16.159,20.0]
[1673349268389,46.41,16.167,16.159,20.0]
[1673349269236,46.41,16.167,16.158,115.4989]
[1673349271435,63.4,16.168,16.158,115.4989]
[1673349271642,63.4,16.168,16.148,66.46]
[1673349271643,18.55825296,16.166,16.148,66.46]
[1673349271855,26.04,16.16,16.149,119.4617]
[1673349272063,20.0,16.159,16.149,119.4617]
[1673349275127,63.43,16.158,16.147,5.7793387]
[1673349280162,46.43,16.158,16.147,5.7793387]
[1673349280375,20.0,16.159,16.147,5.7793387]
[1673349280690,20.0,16.159,16.148,46.46]
[1673349281023,20.0,16.159,16.149,20.0]
[1673349285010,17.0,16.158,16.149,20.0]
[1673349285423,17.0,16.158,16.148,46.46]
[1673349285634,20.0,16.159,16.148,46.46]
[1673349291014,17.0,16.158,16.148,46.46]
[1673349292151,17.0,16.158,16.147,52.2393387]
[1673349293427,46.43,16.157,16.147,5.7793387]
[1673349293728,17.0,16.156,16.147,5.7793387]
[1673349294585,17.0,16.157,16.147,5.7793387]
[1673349295424,94.53358732,16.156,16.147,5.7793387]
[1673349295636,17.0,16.155,16.147,5.7793387]
[1673349298380,46.44,16.154,16.147,5.7793387]
[1673349298689,17.0,16.153,16.147,5.7793387]
[1673349299299,17.0,16.154,16.147,5.7793387]
[1673349299514,46.45,16.153,16.147,5.7793387]
[1673349299736,17.0,16.152,16.147,5.7793387]
[1673349300891,46.45,16.151,16.139,117.3402]
[1673349301212,167.45,16.15,16.139,117.3402]
[1673349301425,46.46,16.149,16.139,117.3402]
[1673349301628,17.0,16.148,16.139,117.3402]
[1673349301844,46.46,16.147,16.139,117.3402]
[1673349302162,17.0,16.146,16.139,117.3402]
[1673349302664,46.47,16.145,16.132,20.0]
[1673349302875,17.0,16.144,16.132,130.2834]
[1673349304139,46.46,16.149,16.132,130.2834]
[1673349304360,17.0,16.148,16.133,46.5]
[1673349304565,46.46,16.147,16.133,46.5]
[1673349304783,17.0,16.146,16.133,46.5]
[1673349306031,17.0,16.146,16.134,20.0]
[1673349307410,46.46,16.149,16.135,17.0]
[1673349307598,46.46,16.149,16.134,20.0]
[1673349307813,46.46,16.149,16.135,46.5]
[1673349308782,17.0,16.148,16.135,46.5]
[1673349309093,17.0,16.148,16.134,20.0]
[1673349309288,46.46,16.147,16.134,20.0]
[1673349309604,17.0,16.146,16.134,20.0]
[1673349309812,125.8523,16.146,16.134,20.0]
[1673349310762,46.47,16.145,16.134,20.0]
[1673349310972,17.0,16.144,16.134,20.0]
[1673349311720,17.0,16.144,16.132,176.7934]
[1673349311917,17.0,16.144,16.132,130.2834]
[1673349314243,26.03,16.14,16.132,130.2834]
[1673349315290,26.03,16.14,16.13,146.51]
[1673349315483,26.03,16.14,16.13,100.0]
[1673349315484,37.0,16.139,16.13,100.0]
[1673349315688,20.0,16.139,16.13,100.0]
[1673349316863,20.0,16.139,16.13,90.0]
[1673349319382,17.0,16.138,16.13,90.0]
[1673349322106,26.03,16.14,16.13,90.0]
[1673349322321,155.3223,16.146,16.131,63.51]
[1673349322542,108.8523,16.146,16.131,198.20618398]
[1673349322753,108.8523,16.146,16.132,20.0]
[1673349322968,108.8523,16.146,16.133,46.5]
[1673349323176,108.8523,16.146,16.132,66.51]
[1673349323177,46.47,16.145,16.132,66.51]
[1673349323389,25.96,16.14,16.131,118.3115]
[1673349323599,17.0,16.139,16.131,118.3115]
[1673349324858,108.8523,16.146,16.132,46.51]
[1673349325061,26.15,16.15,16.132,46.51]
[1673349325273,20.0,16.149,16.133,18.30468398]
[1673349325595,20.0,16.149,16.134,46.5]
[1673349325806,20.0,16.149,16.134,20.0]
[1673349326016,20.0,16.149,16.136,20.0]
[1673349326232,20.0,16.149,16.137,46.49]
[1673349327380,17.0,16.148,16.137,46.49]
[1673349327603,17.0,16.148,16.136,20.0]
[1673349332311,46.46,16.147,16.136,20.0]
[1673349332548,17.0,16.146,16.136,20.0]
[1673349333164,17.0,16.147,16.136,20.0]
[1673349333385,46.46,16.148,16.136,20.0]
[1673349333603,66.46,16.149,16.136,20.0]
[1673349334726,17.0,16.148,16.136,20.0]
[1673349336111,17.0,16.148,16.134,66.5]
[1673349336347,17.0,16.148,16.134,20.0]
[1673349336530,46.46,16.147,16.134,20.0]
[1673349336846,20.0,16.149,16.135,46.5]
[1673349337252,66.46,16.149,16.135,46.5]
[1673349338412,17.0,16.148,16.135,46.5]
[1673349338626,46.46,16.147,16.135,46.5]
[1673349338823,17.0,16.146,16.134,66.5]
[1673349339035,63.46,16.148,16.134,66.5]
[1673349339586,63.46,16.148,16.134,20.0]
[1673349342129,17.0,16.148,16.135,17.0]
[1673349342644,17.0,16.148,16.136,20.0]
[1673349342844,66.46,16.149,16.136,20.0]
[1673349344310,17.0,16.148,16.136,20.0]
[1673349346855,46.46,16.147,16.136,20.0]
[1673349347042,63.46,16.148,16.135,46.5]
[1673349347252,63.46,16.148,16.134,20.0]
[1673349347253,109.4847,16.146,16.134,20.0]
[1673349347566,63.47,16.145,16.134,20.0]
[1673349350102,17.0,16.145,16.134,20.0]
[1673349355270,26.04,16.14,16.13,90.0]
[1673349355473,63.49,16.139,16.13,90.0]
[1673349364304,46.49,16.139,16.13,90.0]
[1673349364511,26.04,16.14,16.13,90.0]
[1673349364727,20.0,16.139,16.13,90.0]
[1673349364920,66.49,16.139,16.13,90.0]
[1673349365963,17.0,16.138,16.13,90.0]
[1673349367545,66.49,16.139,16.13,90.0]
[1673349367755,20.0,16.139,16.13,90.0]
[1673349368405,17.0,16.138,16.13,90.0]
[1673349376911,66.49,16.139,16.13,90.0]
[1673349377223,20.0,16.139,16.13,90.0]
[1673349377433,17.0,16.138,16.13,90.0]
[1673349377859,20.0,16.139,16.131,20.0]
[1673349384582,17.0,16.138,16.131,20.0]
[1673349386679,17.0,16.138,16.13,90.0]
[1673349394555,46.49,16.137,16.13,90.0]
[1673349394882,17.0,16.136,16.13,90.0]
[1673349395404,17.0,16.137,16.13,90.0]
[1673349395720,46.49,16.136,16.13,90.0]
[1673349395913,17.0,16.135,16.13,90.0]
[1673349402112,85.05825296,16.134,16.13,90.0]
[1673349402323,17.0,16.133,16.12,32.5495263]
[1673349402532,26.04,16.13,16.12,32.5495263]
[1673349402742,37.0,16.129,16.12,32.5495263]
[1673349402969,242.5765,16.14,16.121,66.54]
[1673349403163,242.5765,16.14,16.121,82.92468398]
[1673349403373,242.5765,16.14,16.122,17.0]
[1673349403594,289.0565,16.14,16.123,157.7664]
[1673349403802,289.0565,16.14,16.124,20.0]
[1673349404013,289.0565,16.14,16.126,20.0]
[1673349404325,177.01,16.14,16.126,20.0]
[1673349404963,17.0,16.138,16.126,20.0]
[1673349407272,46.49,16.137,16.12,79.0895263]
[1673349407483,26.09,16.13,16.12,32.5495263]
[1673349407707,83.52,16.129,16.12,32.5495263]
[1673349413696,102.07825296,16.129,16.12,32.5495263]
[1673349415161,83.52,16.129,16.12,32.5495263]
[1673349415390,66.52,16.129,16.12,32.5495263]
[1673349416955,17.0,16.128,16.12,32.5495263]
[1673349417166,46.52,16.127,16.12,32.5495263]
[1673349417364,17.0,16.126,16.12,32.5495263]
[1673349417775,66.52,16.129,16.12,32.5495263]
[1673349418842,20.0,16.129,16.12,32.5495263]
[1673349419771,17.0,16.128,16.12,32.5495263]
[1673349422088,46.52,16.127,16.12,32.5495263]
[1673349422414,17.0,16.126,16.12,32.5495263]
[1673349422749,46.53,16.125,16.12,32.5495263]
[1673349422944,17.0,16.124,16.12,32.5495263]
[1673349425355,157.3352,16.128,16.12,32.5495263]
[1673349425670,46.52,16.128,16.12,32.5495263]
[1673349425864,20.0,16.129,16.12,32.5495263]
[1673349426074,20.0,16.129,16.121,20.0]
[1673349426288,20.0,16.129,16.121,19.66286424]
[1673349426538,66.49,16.136,16.121,19.66286424]
[1673349428917,17.0,16.135,16.121,19.66286424]
[1673349429129,46.5,16.134,16.123,20.0]
[1673349429333,46.49,16.136,16.124,46.53]
[1673349429546,25.96,16.13,16.121,19.66286424]
[1673349429768,20.0,16.129,16.121,19.66286424]
[1673349430170,66.52,16.129,16.121,19.66286424]
[1673349430381,17.0,16.128,16.121,19.66286424]
[1673349430700,66.52,16.129,16.121,19.66286424]
[1673349430911,17.0,16.128,16.121,19.66286424]
[1673349431761,46.52,16.127,16.12,32.5495263]
[1673349431954,17.0,16.126,16.12,32.5495263]
[1673349432168,63.52,16.128,16.12,32.5495263]
[1673349433656,130.51,16.14,16.12,32.5495263]
[1673349433859,130.51,16.14,16.121,46.54]
[1673349434269,46.49,16.139,16.121,46.54]
[1673349434601,46.49,16.136,16.122,20.0]
[1673349434812,46.49,16.136,16.123,46.53]
[1673349435130,17.0,16.135,16.124,20.0]
[1673349435753,26.03,16.13,16.12,32.5495263]
[1673349435971,63.52,16.129,16.12,32.5495263]
[1673349441538,82.07825296,16.129,16.12,32.5495263]
[1673349443436,20.0,16.128,16.12,32.5495263]
[1673349443654,83.52,16.127,16.12,32.5495263]
[1673349445947,18.55825296,16.126,16.12,32.5495263]
[1673349446157,83.53,16.125,16.12,32.5495263]
[1673349446706,18.55825296,16.124,16.12,32.5495263]
[1673349447015,63.53,16.123,16.12,32.5495263]
[1673349447330,20.0,16.122,16.12,32.5495263]
[1673349447521,63.54,16.121,16.12,32.5495263]
[1673349447730,83.54,16.121,16.12,32.5495263]
[1673349448486,102.09825296,16.121,16.12,32.5495263]
[1673349454249,102.09825296,16.121,16.12,21.5495263]
[1673349456469,83.54,16.121,16.12,21.5495263]
[1673349456681,102.09825296,16.121,16.12,21.5495263]
[1673349461639,37.0,16.121,16.12,21.46645568]
[1673349462584,20.0,16.121,16.12,21.46645568]
[1673349464056,37.0,16.121,16.12,21.46645568]
[1673349467109,20.0,16.12,16.103,46.59]
[1673349467324,216.72825296,16.12,16.105,46.58]
[1673349467634,18.55825296,16.119,16.106,20.0]
[1673349468567,131.63,16.12,16.106,20.0]
[1673349469091,150.18825296,16.12,16.106,20.0]
[1673349469293,17.0,16.119,16.106,20.0]
[1673349469508,45.02825296,16.12,16.107,46.58]
[1673349469713,26.47,16.12,16.108,20.0]
[1673349469944,26.47,16.12,16.109,46.57]
[1673349470134,26.47,16.12,16.11,20.0]
[1673349470663,20.0,16.121,16.112,20.0]
[1673349470866,26.47,16.13,16.114,20.0]
[1673349471078,26.47,16.13,16.115,46.56]
[1673349471287,45.02825296,16.13,16.116,20.0]
[1673349471524,46.52,16.129,16.116,20.0]
[1673349472986,17.0,16.128,16.116,20.0]
[1673349473202,46.52,16.127,16.116,20.0]
[1673349473408,17.0,16.126,16.116,20.0]
[1673349474602,17.0,16.126,16.115,110.9795]
[1673349474877,26.16,16.12,16.111,139.1931]
[1673349475088,17.0,16.119,16.111,139.1931]
[1673349476225,46.55,16.118,16.111,139.1931]
[1673349476442,17.0,16.117,16.111,139.1931]
[1673349478024,17.0,16.118,16.111,139.1931]
[1673349478427,46.54,16.119,16.111,139.1931]
[1673349478652,131.32,16.12,16.111,139.1931]
[1673349478854,26.47,16.12,16.111,139.1931]
[1673349480454,17.0,16.119,16.111,139.1931]
[1673349480663,17.0,16.119,16.111,119.1931]
[1673349480889,65.10825296,16.118,16.111,119.1931]
[1673349481088,17.0,16.117,16.111,119.1931]
[1673349483511,17.0,16.117,16.106,46.58]
[1673349483722,20.0,16.116,16.104,110.9094]
[1673349483935,26.29,16.11,16.104,110.9094]
[1673349484337,17.0,16.115,16.105,20.0]
[1673349486051,46.56,16.114,16.094,46.62]
[1673349486235,131.07,16.11,16.094,112.9314]
[1673349486572,63.57,16.109,16.095,20.0]
[1673349486996,82.12825296,16.109,16.095,20.0]
[1673349487307,18.55825296,16.108,16.095,20.0]
[1673349487518,17.0,16.107,16.095,20.0]
[1673349487709,63.58,16.107,16.095,20.0]
[1673349487919,18.55825296,16.106,16.095,66.61]
[1673349488129,17.0,16.105,16.095,20.0]
[1673349488551,54.11650592,16.105,16.095,20.0]
[1673349488760,35.55825296,16.105,16.095,20.0]
[1673349490668,18.55825296,16.104,16.095,20.0]
[1673349490881,17.0,16.103,16.095,20.0]
[1673349493379,18.55825296,16.104,16.095,20.0]
[1673349494238,18.55825296,16.104,16.094,112.9314]
[1673349494428,46.59,16.103,16.094,112.9314]
[1673349494770,38.55825296,16.102,16.094,112.9314]
[1673349494979,17.0,16.101,16.094,112.9314]
[1673349495169,20.0,16.1,16.094,112.9314]
[1673349495373,17.0,16.099,16.094,112.9314]
[1673349495693,35.55825296,16.099,16.094,112.9314]
[1673349495916,273.95760782,16.125,16.094,112.9314]
[1673349496114,26.04,16.11,16.099,68.15]
[1673349496319,26.04,16.11,16.099,46.6]
[1673349496660,46.57,16.109,16.095,66.61]
[1673349496848,65.12825296,16.109,16.095,20.0]
[1673349497057,46.57,16.109,16.096,46.61]
[1673349497278,131.1,16.11,16.097,20.0]
[1673349497488,46.57,16.109,16.097,20.0]
[1673349497696,46.57,16.109,16.098,52.3793387]
[1673349497937,131.1,16.11,16.099,20.0]
[1673349498421,63.57,16.109,16.099,20.0]
[1673349498855,46.57,16.109,16.099,20.0]
[1673349500001,46.57,16.109,16.098,5.7793387]
[1673349500435,65.12825296,16.109,16.098,5.7793387]
[1673349500650,17.0,16.108,16.098,5.7793387]
[1673349500851,46.58,16.107,16.098,5.7793387]
[1673349501063,17.0,16.106,16.098,5.7793387]
[1673349501286,46.58,16.105,16.098,5.7793387]
[1673349501486,17.0,16.104,16.098,5.7793387]
[1673349503167,46.57,16.109,16.098,5.7793387]
[1673349504623,17.0,16.108,16.098,5.7793387]
[1673349504838,46.58,16.107,16.098,5.7793387]
[1673349505048,17.0,16.106,16.098,5.7793387]
[1673349505266,46.58,16.105,16.098,5.7793387]
[1673349505582,46.57,16.109,16.098,5.7793387]
[1673349506192,131.37,16.11,16.098,5.7793387]
[1673349506422,26.28,16.11,16.098,5.7793387]
[1673349506845,26.28,16.11,16.1,20.0]
[1673349508828,17.0,16.109,16.1,20.0]
[1673349510508,20.0,16.108,16.098,5.7793387]
[1673349510726,46.58,16.107,16.098,5.7793387]
[1673349510933,37.0,16.106,16.098,5.7793387]
[1673349511367,46.58,16.105,16.098,5.7793387]
[1673349511682,17.0,16.104,16.098,5.7793387]
[1673349511898,46.59,16.103,16.098,5.7793387]
[1673349512085,17.0,16.102,16.098,5.7793387]
[1673349518937,17.0,16.102,16.08,26.21]
[1673349518938,46.6,16.101,16.085,46.64]
[1673349519129,46.58,16.1,16.085,162.6185]
[1673349519346,46.58,16.1,16.087,46.64]
[1673349519973,46.58,16.1,16.09,20.0]
[1673349521446,63.6,16.099,16.084,20.0]
[1673349521652,26.18,16.09,16.084,20.0]
[1673349521871,17.0,16.089,16.084,20.0]
[1673349522091,26.18,16.09,16.084,20.0]
[1673349522494,46.6,16.098,16.084,20.0]
[1673349522707,17.0,16.097,16.084,20.0]
[1673349522927,46.61,16.096,16.084,20.0]
[1673349523143,17.0,16.095,16.084,20.0]
[1673349523337,46.62,16.094,16.084,20.0]
[1673349523554,17.0,16.093,16.084,20.0]
[1673349523983,46.6,16.099,16.084,20.0]
[1673349525023,65.15825296,16.099,16.084,20.0]
[1673349525443,46.6,16.099,16.084,20.0]
[1673349525649,31.99504185,16.098,16.084,20.0]
[1673349525858,46.61,16.097,16.084,20.0]
[1673349526505,46.6,16.099,16.084,20.0]
[1673349526713,46.6,16.099,16.084,66.65]
[1673349528401,17.0,16.098,16.084,66.65]
[1673349528722,46.61,16.097,16.084,66.65]
[1673349528938,17.0,16.096,16.084,66.65]
[1673349532587,26.58,16.1,16.084,66.65]
[1673349532804,46.59,16.102,16.085,37.0]
[1673349533125,46.58,16.105,16.087,20.0]
[1673349533350,46.58,16.105,16.088,66.63]
[1673349533766,46.58,16.105,16.089,20.0]
[1673349533954,46.58,16.107,16.09,46.63]
[1673349534162,46.58,16.107,16.091,20.0]
[1673349534375,17.0,16.106,16.092,46.62]
[1673349534587,17.0,16.106,16.093,20.0]
[1673349534588,46.58,16.105,16.093,20.0]
[1673349534809,17.0,16.104,16.093,20.0]
[1673349535019,46.58,16.105,16.093,20.0]
[1673349535229,78.57504185,16.107,16.093,20.0]
[1673349535848,46.58,16.107,16.093,20.0]
[1673349536914,17.0,16.106,16.093,20.0]
[1673349537115,46.58,16.105,16.093,20.0]
[1673349537328,46.58,16.108,16.093,20.0]
[1673349537537,46.57,16.109,16.094,46.62]
[1673349538075,46.57,16.109,16.095,20.0]
[1673349538687,17.0,16.108,16.095,20.0]
[1673349539027,46.58,16.107,16.095,20.0]
[1673349539221,17.0,16.106,16.095,20.0]
[1673349539428,46.58,16.105,16.095,20.0]
[1673349539627,17.0,16.106,16.095,20.0]
[1673349539968,17.0,16.106,16.094,46.62]
[1673349540156,46.58,16.105,16.093,20.0]
[1673349540364,17.0,16.104,16.092,110.6469]
[1673349540572,66.59,16.103,16.091,20.0]
[1673349540793,17.0,16.102,16.091,20.0]
[1673349541011,66.6,16.101,16.091,20.0]
[1673349541319,17.0,16.1,16.091,20.0]
[1673349546152,63.6,16.1,16.091,20.0]
[1673349546364,17.0,16.1,16.091,20.0]
[1673349550785,43.33,16.1,16.089,20.0]
[1673349551007,46.6,16.099,16.089,20.0]
[1673349551318,17.0,16.098,16.089,20.0]
[1673349552896,72.93,16.1,16.089,20.0]
[1673349553086,26.33,16.1,16.089,20.0]
[1673349553730,17.0,16.099,16.089,20.0]
[1673349559620,72.93,16.1,16.089,20.0]
[1673349559829,26.33,16.1,16.089,20.0]
[1673349560971,17.0,16.099,16.089,20.0]
[1673349561411,72.93,16.1,16.089,20.0]
[1673349561720,17.0,16.099,16.089,20.0]
[1673349562453,46.6,16.1,16.089,20.0]
[1673349562676,20.0,16.101,16.089,20.0]
[1673349562985,46.59,16.103,16.089,20.0]
[1673349563173,46.58,16.107,16.091,20.0]
[1673349563390,46.57,16.109,16.092,266.4344]
[1673349563596,46.57,16.109,16.093,20.0]
[1673349563919,46.57,16.109,16.094,46.62]
[1673349564122,46.57,16.109,16.095,20.0]
[1673349565521,46.57,16.109,16.095,38.55825296]
[1673349565723,46.57,16.109,16.096,46.61]
[1673349565908,46.57,16.109,16.097,20.0]
[1673349566119,46.57,16.109,16.098,46.6]
[1673349566349,46.57,16.109,16.097,20.0]
[1673349567815,17.0,16.108,16.097,20.0]
[1673349570875,17.0,16.108,16.096,46.61]
[1673349571182,17.0,16.108,16.095,20.0]
[1673349571183,46.58,16.107,16.095,20.0]
[1673349571397,17.0,16.106,16.095,20.0]
[1673349573797,46.58,16.105,16.095,20.0]
[1673349574009,17.0,16.104,16.095,20.0]
[1673349574961,26.33,16.1,16.088,46.63]
[1673349575162,63.6,16.099,16.086,66.64]
[1673349575495,63.6,16.099,16.086,20.0]
[1673349577798,46.6,16.099,16.086,20.0]
[1673349578010,26.57,16.1,16.087,46.64]
[1673349578208,46.59,16.103,16.087,65.19825296]
[1673349578420,46.59,16.103,16.088,20.0]
[1673349578635,20.0,16.102,16.089,46.63]
[1673349578852,46.59,16.104,16.09,20.0]
[1673349579178,46.57,16.109,16.091,46.62]
[1673349579375,46.57,16.109,16.091,65.17825296]
[1673349579785,46.57,16.109,16.092,38.55825296]
[1673349579999,46.57,16.109,16.093,46.62]
[1673349580321,46.57,16.109,16.094,20.0]
[1673349581382,17.0,16.108,16.094,20.0]
[1673349581591,46.58,16.107,16.094,20.0]
[1673349581801,17.0,16.106,16.094,20.0]
[1673349583594,17.0,16.106,16.095,46.61]
[1673349588433,17.0,16.106,16.096,20.0]
[1673349588740,46.57,16.109,16.096,20.0]
[1673349588950,136.5994,16.11,16.096,20.0]
[1673349589142,183.1694,16.11,16.097,46.61]
[1673349589354,136.5994,16.11,16.097,65.16825296]
[1673349589790,136.5994,16.11,16.098,20.0]
[1673349591369,17.0,16.109,16.098,20.0]
[1673349592318,63.57,16.109,16.098,20.0]
[1673349592522,17.0,16.109,16.097,46.61]
[1673349592714,17.0,16.109,16.096,20.0]
[1673349593148,63.57,16.109,16.097,46.61]
[1673349594616,63.57,16.109,16.098,20.0]
[1673349595035,17.0,16.109,16.098,20.0]
[1673349601568,183.1694,16.11,16.098,20.0]
[1673349601891,17.0,16.109,16.098,20.0]
[1673349606717,17.0,16.109,16.094,20.0]
[1673349606937,26.33,16.1,16.092,224.2943]
[1673349607133,26.33,16.1,16.092,111.0807]
[1673349607334,17.0,16.099,16.092,111.0807]
[1673349608075,26.33,16.1,16.092,111.0807]
[1673349608284,46.59,16.103,16.092,111.0807]
[1673349608518,17.0,16.102,16.092,111.0807]
[1673349609247,26.18,16.1,16.087,46.64]
[1673349609448,17.0,16.099,16.087,46.64]
[1673349613559,17.0,16.099,16.089,46.63]
[1673349613771,17.0,16.099,16.087,46.64]
[1673349615661,26.18,16.1,16.089,46.63]
[1673349616707,72.78,16.1,16.089,46.63]
[1673349616921,17.0,16.099,16.087,46.64]
[1673349617554,26.18,16.1,16.087,46.64]
[1673349618695,26.18,16.1,16.09,20.0]
[1673349618900,17.0,16.099,16.09,20.0]
[1673349619326,17.0,16.1,16.09,20.0]
[1673349623428,46.58,16.107,16.09,20.0]
[1673349623645,46.58,16.107,16.091,158.1877]
[1673349623964,46.58,16.108,16.091,158.1877]
[1673349624160,46.58,16.108,16.092,115.2574]
[1673349624370,46.58,16.108,16.094,20.0]
[1673349624996,17.0,16.107,16.094,20.0]
[1673349625335,46.58,16.106,16.094,20.0]
[1673349625657,17.0,16.105,16.094,20.0]
[1673349627532,46.58,16.108,16.094,20.0]
[1673349628903,17.0,16.107,16.095,46.61]
[1673349629331,17.0,16.107,16.096,20.0]
[1673349630477,144.54634185,16.119,16.097,65.16825296]
[1673349630690,112.5513,16.119,16.098,20.0]
[1673349630907,112.5513,16.119,16.099,159.2686]
[1673349631115,46.55,16.118,16.1,20.0]
[1673349631324,46.55,16.118,16.101,165.9957]
[1673349631549,31.99504185,16.114,16.101,165.9957]
[1673349631855,17.0,16.113,16.101,165.9957]
[1673349632382,26.18,16.11,16.101,46.6]
[1673349632574,17.0,16.109,16.1,20.0]
[1673349634047,26.18,16.11,16.1,20.0]
[1673349634382,26.18,16.11,16.098,20.0]
[1673349634693,46.57,16.109,16.098,20.0]
[1673349635116,26.18,16.11,16.098,20.0]
[1673349635310,17.0,16.109,16.098,20.0]
[1673349635841,63.57,16.109,16.096,20.0]
[1673349636052,63.57,16.109,16.096,66.61]
[1673349638565,63.57,16.109,16.096,20.0]
[1673349639844,63.57,16.109,16.097,46.61]
[1673349640156,63.57,16.109,16.096,66.61]
[1673349643946,63.57,16.109,16.096,20.0]
[1673349647938,63.57,16.109,16.096,66.61]
[1673349648250,46.57,16.109,16.096,66.61]
[1673349649422,17.0,16.108,16.096,66.61]
[1673349651702,17.0,16.109,16.096,66.61]
[1673349654364,17.0,16.109,16.096,46.61]